[Event "Titled Tuesday Blitz February 21 Late 2023"]
[White "Chemin, Justo Reinaldo"]
[Black "Delgado Rosas, Fatima Alexandra"]
[WhiteFideId "2101580"]
[BlackFideId "6603963"]
[WhiteElo "2040"]
[BlackElo "1500"]
[Result "1-0"]
[Round "03"]
[TimeControl "180+2"]
[Date "2023.02.21"]
[WhiteClock "0:01:25"]
[BlackClock "0:01:57"]

1. d4 {[%clk 0:03:00]}  Nf6 {[%clk 0:02:59]} 2. g4 {[%clk 0:03:00]}  Nxg4 {[%clk 0:02:59]} 3. e4 {[%clk 0:03:00]}  Nf6 {[%clk 0:03:00]} 4. e5 {[%clk 0:03:00]}  Nd5 {[%clk 0:03:00]} 5. c4 {[%clk 0:02:59]}  Nb6 {[%clk 0:03:00]} 6. Nc3 {[%clk 0:02:59]}  d6 {[%clk 0:03:01]} 7. f4 {[%clk 0:02:55]}  c5 {[%clk 0:02:59]} 8. d5 {[%clk 0:02:53]}  g6 {[%clk 0:02:52]} 9. Nf3 {[%clk 0:02:46]}  Bg4 {[%clk 0:02:46]} 10. Be2 {[%clk 0:02:45]}  Bh6 {[%clk 0:02:44]} 11. h3 {[%clk 0:02:37]}  Bh5 {[%clk 0:02:43]} 12. Ne4 {[%clk 0:02:30]}  Bxf3 {[%clk 0:02:23]} 13. Bxf3 {[%clk 0:02:30]}  Nxc4 {[%clk 0:02:24]} 14. Qa4+ {[%clk 0:02:28]}  Nd7 {[%clk 0:02:17]} 15. Qxc4 {[%clk 0:02:28]}  O-O {[%clk 0:02:14]} 16. exd6 {[%clk 0:02:23]}  exd6 {[%clk 0:02:15]} 17. O-O {[%clk 0:02:22]}  Qh4 {[%clk 0:02:13]} 18. Bg2 {[%clk 0:02:18]}  Rad8 {[%clk 0:02:06]} 19. Qe2 {[%clk 0:02:02]}  Rfe8 {[%clk 0:02:04]} 20. Qf3 {[%clk 0:02:02]}  f5 {[%clk 0:02:03]} 21. Nxd6 {[%clk 0:01:58]}  Re1 {[%clk 0:02:00]} 22. Be3 {[%clk 0:01:47]}  Rxa1 {[%clk 0:01:58]} 23. Rxa1 {[%clk 0:01:46]}  Nf6 {[%clk 0:01:58]} 24. Nxb7 {[%clk 0:01:31]}  Rd7 {[%clk 0:01:58]} 25. Nxc5 {[%clk 0:01:30]}  Rd8 {[%clk 0:01:56]} 26. Rd1 {[%clk 0:01:28]}  Ne4 {[%clk 0:01:56]} 27. Nxe4 {[%clk 0:01:26]}  fxe4 {[%clk 0:01:57]} 28. Qxe4 {[%clk 0:01:25]} 1-0


[Site "https://www.chess.com"]

[Event "Titled Tuesday Blitz February 21 Late 2023"]
[White "Jesusesmifuerza"]
[Black "Jorajuria Mendoza, Algol"]
[BlackFideId "5128897"]
[WhiteElo "2009"]
[BlackElo "2069"]
[Result "0-1"]
[Round "03"]
[TimeControl "180+2"]
[Date "2023.02.21"]
[WhiteClock "0:00:01"]
[BlackClock "0:00:03"]

1. d4 {[%clk 0:03:00]}  d5 {[%clk 0:02:58]} 2. Nc3 {[%clk 0:03:00]}  Nf6 {[%clk 0:02:54]} 3. Bf4 {[%clk 0:02:59]}  e6 {[%clk 0:02:51]} 4. Nb5 {[%clk 0:02:58]}  Na6 {[%clk 0:02:51]} 5. e3 {[%clk 0:02:57]}  c6 {[%clk 0:02:34]} 6. Nc3 {[%clk 0:02:57]}  c5 {[%clk 0:02:35]} 7. Nb5 {[%clk 0:02:45]}  Bd7 {[%clk 0:02:26]} 8. c3 {[%clk 0:02:38]}  Qb6 {[%clk 0:02:21]} 9. a4 {[%clk 0:02:38]}  c4 {[%clk 0:02:16]} 10. Nf3 {[%clk 0:02:37]}  Bxb5 {[%clk 0:02:10]} 11. axb5 {[%clk 0:02:38]}  Qxb5 {[%clk 0:02:11]} 12. b3 {[%clk 0:02:38]}  Qxb3 {[%clk 0:02:09]} 13. Qxb3 {[%clk 0:02:37]}  cxb3 {[%clk 0:02:10]} 14. Bb5+ {[%clk 0:02:32]}  Ke7 {[%clk 0:01:41]} 15. Bxa6 {[%clk 0:02:08]}  bxa6 {[%clk 0:01:42]} 16. Rxa6 {[%clk 0:02:08]}  Ne4 {[%clk 0:01:41]} 17. Nd2 {[%clk 0:01:51]}  Nxc3 {[%clk 0:01:27]} 18. Nxb3 {[%clk 0:01:47]}  Kf6 {[%clk 0:01:09]} 19. O-O {[%clk 0:01:44]}  Be7 {[%clk 0:01:02]} 20. Rfa1 {[%clk 0:01:32]}  Ne2+ {[%clk 0:00:52]} 21. Kf1 {[%clk 0:01:30]}  Nxf4 {[%clk 0:00:52]} 22. exf4 {[%clk 0:01:30]}  Rhb8 {[%clk 0:00:45]} 23. Nc5 {[%clk 0:01:29]}  Bxc5 {[%clk 0:00:42]} 24. dxc5 {[%clk 0:01:30]}  Rc8 {[%clk 0:00:39]} 25. c6 {[%clk 0:01:25]}  Rc7 {[%clk 0:00:39]} 26. Ke2 {[%clk 0:01:23]}  Rac8 {[%clk 0:00:34]} 27. Ke3 {[%clk 0:01:10]}  Kf5 {[%clk 0:00:28]} 28. f3 {[%clk 0:01:06]}  Rxc6 {[%clk 0:00:23]} 29. g4+ {[%clk 0:01:05]}  Kf6 {[%clk 0:00:23]} 30. Rxc6 {[%clk 0:01:05]}  Rxc6 {[%clk 0:00:24]} 31. Rxa7 {[%clk 0:01:04]}  Rc3+ {[%clk 0:00:24]} 32. Ke2 {[%clk 0:01:01]}  Rc2+ {[%clk 0:00:23]} 33. Ke3 {[%clk 0:01:01]}  Rxh2 {[%clk 0:00:23]} 34. g5+ {[%clk 0:00:50]}  Kg6 {[%clk 0:00:23]} 35. Ra3 {[%clk 0:00:46]}  h6 {[%clk 0:00:22]} 36. Ra7 {[%clk 0:00:40]}  Rb2 {[%clk 0:00:18]} 37. gxh6 {[%clk 0:00:28]}  gxh6 {[%clk 0:00:19]} 38. Rd7 {[%clk 0:00:27]}  h5 {[%clk 0:00:19]} 39. f5+ {[%clk 0:00:25]}  Kf6 {[%clk 0:00:12]} 40. fxe6 {[%clk 0:00:24]}  Kxe6 {[%clk 0:00:12]} 41. Rd8 {[%clk 0:00:24]}  h4 {[%clk 0:00:11]} 42. Rh8 {[%clk 0:00:23]}  Rb4 {[%clk 0:00:10]} 43. f4 {[%clk 0:00:22]}  h3 {[%clk 0:00:11]} 44. Kf2 {[%clk 0:00:19]}  Rb3 {[%clk 0:00:10]} 45. Rh5 {[%clk 0:00:18]}  d4 {[%clk 0:00:10]} 46. Re5+ {[%clk 0:00:18]}  Kf6 {[%clk 0:00:09]} 47. Rd5 {[%clk 0:00:15]}  d3 {[%clk 0:00:07]} 48. Kg1 {[%clk 0:00:13]}  Rb1+ {[%clk 0:00:05]} 49. Kh2 {[%clk 0:00:13]}  Rb3 {[%clk 0:00:03]} 50. Kxh3 {[%clk 0:00:11]}  d2+ {[%clk 0:00:03]} 51. Kg2 {[%clk 0:00:11]}  Rb2 {[%clk 0:00:02]} 52. Kf3 {[%clk 0:00:10]}  Ke6 {[%clk 0:00:02]} 53. Rd8 {[%clk 0:00:08]}  Kf5 {[%clk 0:00:02]} 54. Rd5+ {[%clk 0:00:07]}  Ke6 {[%clk 0:00:03]} 55. Rd8 {[%clk 0:00:07]}  Rb3+ {[%clk 0:00:02]} 56. Ke2 {[%clk 0:00:06]}  Rb4 {[%clk 0:00:03]} 57. Kxd2 {[%clk 0:00:06]}  Rxf4 {[%clk 0:00:03]} 58. Ke2 {[%clk 0:00:06]}  Kf5 {[%clk 0:00:03]} 59. Rd5+ {[%clk 0:00:04]}  Ke4 {[%clk 0:00:03]} 60. Rd7 {[%clk 0:00:04]}  f5 {[%clk 0:00:03]} 61. Re7+ {[%clk 0:00:04]}  Kd4 {[%clk 0:00:04]} 62. Rd7+ {[%clk 0:00:04]}  Ke5 {[%clk 0:00:04]} 63. Re7+ {[%clk 0:00:04]}  Kf6 {[%clk 0:00:04]} 64. Ra7 {[%clk 0:00:04]}  Kg5 {[%clk 0:00:04]} 65. Ra5 {[%clk 0:00:04]}  Kg4 {[%clk 0:00:04]} 66. Ra8 {[%clk 0:00:04]}  Kg3 {[%clk 0:00:03]} 67. Rg8+ {[%clk 0:00:05]}  Rg4 {[%clk 0:00:03]} 68. Rf8 {[%clk 0:00:05]}  f4 {[%clk 0:00:03]} 69. Kf1 {[%clk 0:00:06]}  Rh4 {[%clk 0:00:03]} 70. Rg8+ {[%clk 0:00:05]}  Kf3 {[%clk 0:00:04]} 71. Ke1 {[%clk 0:00:05]}  Rh1+ {[%clk 0:00:03]} 72. Kd2 {[%clk 0:00:05]}  Kf2 {[%clk 0:00:03]} 73. Rf8 {[%clk 0:00:04]}  f3 {[%clk 0:00:03]} 74. Rg8 {[%clk 0:00:04]}  Ra1 {[%clk 0:00:03]} 75. Rh8 {[%clk 0:00:04]}  Ra2+ {[%clk 0:00:02]} 76. Kd1 {[%clk 0:00:04]}  Kf1 {[%clk 0:00:02]} 77. Rh1+ {[%clk 0:00:03]}  Kg2 {[%clk 0:00:03]} 78. Rh8 {[%clk 0:00:03]}  f2 {[%clk 0:00:03]} 79. Rg8+ {[%clk 0:00:04]}  Kf1 {[%clk 0:00:03]} 80. Rh8 {[%clk 0:00:03]}  Ra4 {[%clk 0:00:04]} 81. Kd2 {[%clk 0:00:01]}  Kg2 {[%clk 0:00:03]} 0-1


[Site "https://www.chess.com"]

[Event "Titled Tuesday Blitz February 21 Late 2023"]
[White "Ruiz Aguilar, Pablo Alexander"]
[Black "Dias, Joao Batista"]
[WhiteFideId "4401352"]
[BlackFideId "2108240"]
[WhiteElo "2161"]
[BlackElo "1796"]
[Result "0-1"]
[Round "03"]
[TimeControl "180+2"]
[Date "2023.02.21"]
[WhiteClock "0:00:01"]
[BlackClock "0:00:36"]

1. e4 {[%clk 0:03:00]}  c5 {[%clk 0:02:53]} 2. Nf3 {[%clk 0:03:01]}  Nc6 {[%clk 0:02:52]} 3. d4 {[%clk 0:03:01]}  cxd4 {[%clk 0:02:51]} 4. Nxd4 {[%clk 0:03:02]}  g6 {[%clk 0:02:51]} 5. Nc3 {[%clk 0:03:03]}  Bg7 {[%clk 0:02:51]} 6. Be3 {[%clk 0:03:03]}  Nf6 {[%clk 0:02:51]} 7. Bc4 {[%clk 0:03:04]}  O-O {[%clk 0:02:51]} 8. Bb3 {[%clk 0:03:04]}  e6 {[%clk 0:02:51]} 9. Ndb5 {[%clk 0:03:01]}  d5 {[%clk 0:02:43]} 10. exd5 {[%clk 0:03:01]}  exd5 {[%clk 0:02:43]} 11. Bxd5 {[%clk 0:02:50]}  Nxd5 {[%clk 0:02:43]} 12. Qxd5 {[%clk 0:02:50]}  Qxd5 {[%clk 0:02:30]} 13. Nxd5 {[%clk 0:02:50]}  Bxb2 {[%clk 0:02:30]} 14. Rb1 {[%clk 0:02:50]}  Bg7 {[%clk 0:02:29]} 15. O-O {[%clk 0:02:38]}  a6 {[%clk 0:02:29]} 16. Ndc7 {[%clk 0:02:03]}  Rb8 {[%clk 0:02:20]} 17. Na7 {[%clk 0:01:22]}  Bf5 {[%clk 0:02:07]} 18. Nxa6 {[%clk 0:01:15]}  bxa6 {[%clk 0:01:51]} 19. Nxc6 {[%clk 0:01:14]}  Rxb1 {[%clk 0:01:49]} 20. Rxb1 {[%clk 0:01:15]}  Bxc2 {[%clk 0:01:49]} 21. Rc1 {[%clk 0:01:12]}  Be4 {[%clk 0:01:47]} 22. Ne7+ {[%clk 0:01:10]}  Kh8 {[%clk 0:01:46]} 23. Rc8 {[%clk 0:01:06]}  Rxc8 {[%clk 0:01:44]} 24. Nxc8 {[%clk 0:01:06]}  Be5 {[%clk 0:01:37]} 25. f4 {[%clk 0:01:00]}  Bc7 {[%clk 0:01:32]} 26. Nb6 {[%clk 0:00:55]}  Kg7 {[%clk 0:01:28]} 27. Na4 {[%clk 0:00:50]}  Bd5 {[%clk 0:01:24]} 28. a3 {[%clk 0:00:48]}  Kf6 {[%clk 0:01:17]} 29. Nc5 {[%clk 0:00:46]}  Bd6 {[%clk 0:01:10]} 30. Bd4+ {[%clk 0:00:35]}  Ke7 {[%clk 0:01:06]} 31. a4 {[%clk 0:00:28]}  a5 {[%clk 0:01:02]} 32. g3 {[%clk 0:00:19]}  f6 {[%clk 0:00:58]} 33. Kf2 {[%clk 0:00:13]}  Bc6 {[%clk 0:00:58]} 34. Ke3 {[%clk 0:00:09]}  Kf7 {[%clk 0:00:58]} 35. h4 {[%clk 0:00:06]}  Bxc5 {[%clk 0:00:57]} 36. Bxc5 {[%clk 0:00:05]}  Bxa4 {[%clk 0:00:57]} 37. Bb6 {[%clk 0:00:06]}  Bd7 {[%clk 0:00:55]} 38. Bxa5 {[%clk 0:00:06]}  Ke6 {[%clk 0:00:55]} 39. Bc3 {[%clk 0:00:06]}  h5 {[%clk 0:00:55]} 40. Kf2 {[%clk 0:00:05]}  Kf5 {[%clk 0:00:54]} 41. Bb4 {[%clk 0:00:04]}  Bc6 {[%clk 0:00:53]} 42. Be7 {[%clk 0:00:04]}  Ke6 {[%clk 0:00:51]} 43. Bd8 {[%clk 0:00:04]}  Kf5 {[%clk 0:00:47]} 44. Be7 {[%clk 0:00:03]}  Bd5 {[%clk 0:00:45]} 45. Bd8 {[%clk 0:00:01]}  Ke6 {[%clk 0:00:40]} 46. Bc7 {[%clk 0:00:01]}  Kf5 {[%clk 0:00:36]} 0-1


[Site "https://www.chess.com"]

[Event "Titled Tuesday Blitz February 21 Late 2023"]
[White "Benmesbah, Natacha"]
[Black "Desideri, Ricardo Maruchi"]
[WhiteFideId "642002"]
[BlackFideId "2110440"]
[WhiteElo "2261"]
[BlackElo "1959"]
[Result "1-0"]
[Round "03"]
[TimeControl "180+2"]
[Date "2023.02.21"]
[WhiteClock "0:00:42"]
[BlackClock "0:00:02"]

1. e4 {[%clk 0:03:00]}  c5 {[%clk 0:02:59]} 2. Nf3 {[%clk 0:02:54]}  d6 {[%clk 0:02:54]} 3. Bb5+ {[%clk 0:02:47]}  Nd7 {[%clk 0:02:49]} 4. d4 {[%clk 0:02:42]}  cxd4 {[%clk 0:02:48]} 5. Qxd4 {[%clk 0:02:40]}  a6 {[%clk 0:02:49]} 6. Bxd7+ {[%clk 0:02:39]}  Bxd7 {[%clk 0:02:47]} 7. O-O {[%clk 0:02:40]}  Bc6 {[%clk 0:02:46]} 8. c4 {[%clk 0:02:38]}  e5 {[%clk 0:02:45]} 9. Qe3 {[%clk 0:02:36]}  Nf6 {[%clk 0:02:44]} 10. Nc3 {[%clk 0:02:35]}  Be7 {[%clk 0:02:37]} 11. Rd1 {[%clk 0:02:34]}  Qc7 {[%clk 0:02:34]} 12. a4 {[%clk 0:02:28]}  O-O {[%clk 0:02:31]} 13. b3 {[%clk 0:02:28]}  Ng4 {[%clk 0:02:12]} 14. Qe2 {[%clk 0:01:54]}  Qb6 {[%clk 0:02:11]} 15. h3 {[%clk 0:01:41]}  Qxb3 {[%clk 0:02:00]} 16. Ra3 {[%clk 0:01:38]}  Qb6 {[%clk 0:01:25]} 17. hxg4 {[%clk 0:01:38]}  d5 {[%clk 0:01:25]} 18. Ra2 {[%clk 0:01:22]}  d4 {[%clk 0:01:03]} 19. Nd5 {[%clk 0:01:20]}  Bxd5 {[%clk 0:01:02]} 20. cxd5 {[%clk 0:01:13]}  Bd6 {[%clk 0:00:57]} 21. Bd2 {[%clk 0:01:11]}  Qb3 {[%clk 0:00:51]} 22. Raa1 {[%clk 0:01:08]}  Rac8 {[%clk 0:00:39]} 23. Rdb1 {[%clk 0:00:58]}  Qc2 {[%clk 0:00:36]} 24. Ne1 {[%clk 0:00:58]}  Qc7 {[%clk 0:00:30]} 25. Rc1 {[%clk 0:00:55]}  Qd7 {[%clk 0:00:28]} 26. Rxc8 {[%clk 0:00:50]}  Rxc8 {[%clk 0:00:27]} 27. a5 {[%clk 0:00:50]}  Qd8 {[%clk 0:00:16]} 28. Rb1 {[%clk 0:00:49]}  Qd7 {[%clk 0:00:09]} 29. Qd3 {[%clk 0:00:45]}  Qa4 {[%clk 0:00:04]} 30. Rxb7 {[%clk 0:00:42]}  Qa1 {[%clk 0:00:02]} 31. g3 {[%clk 0:00:42]} 1-0


[Site "https://www.chess.com"]

[Event "Titled Tuesday Blitz February 21 Late 2023"]
[White "Vaglio Munoz, Jaime"]
[Black "Shapiro, Bryan"]
[WhiteFideId "6500145"]
[BlackFideId "2087740"]
[WhiteElo "2174"]
[BlackElo "1972"]
[Result "1-0"]
[Round "03"]
[TimeControl "180+2"]
[Date "2023.02.21"]
[WhiteClock "0:02:20"]
[BlackClock "0:02:19"]

1. d4 {[%clk 0:03:00]}  Nf6 {[%clk 0:02:59]} 2. c4 {[%clk 0:02:59]}  e6 {[%clk 0:02:57]} 3. f3 {[%clk 0:02:58]}  d5 {[%clk 0:02:48]} 4. Nc3 {[%clk 0:02:56]}  b6 {[%clk 0:02:44]} 5. cxd5 {[%clk 0:02:55]}  exd5 {[%clk 0:02:45]} 6. e4 {[%clk 0:02:53]}  dxe4 {[%clk 0:02:41]} 7. fxe4 {[%clk 0:02:54]}  Nxe4 {[%clk 0:02:41]} 8. Nxe4 {[%clk 0:02:52]}  Qh4+ {[%clk 0:02:40]} 9. Nf2 {[%clk 0:02:40]}  Bb4+ {[%clk 0:02:27]} 10. Bd2 {[%clk 0:02:39]}  Bxd2+ {[%clk 0:02:21]} 11. Qxd2 {[%clk 0:02:38]}  O-O {[%clk 0:02:20]} 12. Nf3 {[%clk 0:02:38]}  Qe7+ {[%clk 0:02:19]} 13. Be2 {[%clk 0:02:35]}  Re8 {[%clk 0:02:20]} 14. O-O {[%clk 0:02:23]}  Qxe2 {[%clk 0:02:19]} 15. Rae1 {[%clk 0:02:20]} 1-0


[Site "https://www.chess.com"]

[Event "Titled Tuesday Blitz February 21 Late 2023"]
[White "Eliteplayer3"]
[Black "rikchessmx"]
[WhiteElo "1962"]
[BlackElo "2290"]
[Result "1-0"]
[Round "03"]
[TimeControl "180+2"]
[Date "2023.02.21"]
[WhiteClock "0:01:11"]
[BlackClock "0:01:58"]

1. e4 {[%clk 0:03:00]}  g6 {[%clk 0:02:59]} 2. d4 {[%clk 0:03:00]}  Bg7 {[%clk 0:03:00]} 3. Nf3 {[%clk 0:03:00]}  c5 {[%clk 0:02:56]} 4. c3 {[%clk 0:03:00]}  Nf6 {[%clk 0:02:54]} 5. Bd3 {[%clk 0:02:59]}  d6 {[%clk 0:02:53]} 6. O-O {[%clk 0:02:59]}  O-O {[%clk 0:02:49]} 7. h3 {[%clk 0:02:59]}  Nc6 {[%clk 0:02:49]} 8. Be3 {[%clk 0:02:59]}  cxd4 {[%clk 0:02:47]} 9. Nxd4 {[%clk 0:02:51]}  Ne5 {[%clk 0:02:46]} 10. Be2 {[%clk 0:02:47]}  Nxe4 {[%clk 0:02:40]} 11. f4 {[%clk 0:02:42]}  Nc6 {[%clk 0:02:38]} 12. Bf3 {[%clk 0:02:36]}  d5 {[%clk 0:02:37]} 13. Nd2 {[%clk 0:02:20]}  Nxd4 {[%clk 0:02:35]} 14. cxd4 {[%clk 0:02:20]}  Nf6 {[%clk 0:02:32]} 15. Be2 {[%clk 0:02:15]}  Bf5 {[%clk 0:02:31]} 16. Nf3 {[%clk 0:02:15]}  Be4 {[%clk 0:02:31]} 17. Ne5 {[%clk 0:02:13]}  Nd7 {[%clk 0:02:30]} 18. Bd3 {[%clk 0:02:12]}  Nxe5 {[%clk 0:02:29]} 19. fxe5 {[%clk 0:02:11]}  Bxd3 {[%clk 0:02:29]} 20. Qxd3 {[%clk 0:02:12]}  Qb6 {[%clk 0:02:28]} 21. b3 {[%clk 0:02:11]}  Rac8 {[%clk 0:02:27]} 22. Rac1 {[%clk 0:02:08]}  Qa5 {[%clk 0:02:26]} 23. Qe2 {[%clk 0:02:05]}  e6 {[%clk 0:02:24]} 24. Qf2 {[%clk 0:02:03]}  Qa3 {[%clk 0:02:20]} 25. Rxc8 {[%clk 0:02:01]}  Rxc8 {[%clk 0:02:19]} 26. Qxf7+ {[%clk 0:02:01]}  Kh8 {[%clk 0:02:19]} 27. Qxe6 {[%clk 0:02:01]}  Rf8 {[%clk 0:02:15]} 28. Rxf8+ {[%clk 0:01:56]}  Qxf8 {[%clk 0:02:14]} 29. Qxd5 {[%clk 0:01:56]}  h5 {[%clk 0:02:12]} 30. Qxb7 {[%clk 0:01:54]}  Qf5 {[%clk 0:02:09]} 31. Qxa7 {[%clk 0:01:50]}  Qb1+ {[%clk 0:02:07]} 32. Kh2 {[%clk 0:01:49]}  Qe4 {[%clk 0:02:07]} 33. Bf2 {[%clk 0:01:40]}  h4 {[%clk 0:02:05]} 34. Qf7 {[%clk 0:01:33]}  Bh6 {[%clk 0:01:58]} 35. Qe8+ {[%clk 0:01:11]}  Kh7 {[%clk 0:01:58]} 36. Qe7+ {[%clk 0:01:11]}  Kh8 {[%clk 0:01:58]} 37. Qxh4 {[%clk 0:01:11]} 1-0


[Site "https://www.chess.com"]

[Event "Titled Tuesday Blitz February 21 Late 2023"]
[White "tandercat"]
[Black "Liu, Casper"]
[BlackFideId "1454153"]
[WhiteElo "1858"]
[BlackElo "2278"]
[Result "0-1"]
[Round "03"]
[TimeControl "180+2"]
[Date "2023.02.21"]
[WhiteClock "0:00:01"]
[BlackClock "0:00:03"]

1. d4 {[%clk 0:03:00]}  Nf6 {[%clk 0:02:59]} 2. c4 {[%clk 0:03:01]}  e6 {[%clk 0:03:00]} 3. Nc3 {[%clk 0:03:01]}  d5 {[%clk 0:03:00]} 4. cxd5 {[%clk 0:03:00]}  exd5 {[%clk 0:03:01]} 5. Bg5 {[%clk 0:03:00]}  Be7 {[%clk 0:03:02]} 6. e3 {[%clk 0:02:59]}  O-O {[%clk 0:03:02]} 7. Bd3 {[%clk 0:02:59]}  b6 {[%clk 0:02:55]} 8. Bxf6 {[%clk 0:02:52]}  Bxf6 {[%clk 0:02:54]} 9. Qh5 {[%clk 0:02:51]}  g6 {[%clk 0:02:53]} 10. Qxd5 {[%clk 0:02:50]}  Qxd5 {[%clk 0:02:19]} 11. Nxd5 {[%clk 0:02:50]}  Bd8 {[%clk 0:02:20]} 12. Rc1 {[%clk 0:02:38]}  Bb7 {[%clk 0:02:13]} 13. Be4 {[%clk 0:02:20]}  Na6 {[%clk 0:02:04]} 14. Nf6+ {[%clk 0:02:18]}  Bxf6 {[%clk 0:02:02]} 15. Bxb7 {[%clk 0:02:18]}  Nb4 {[%clk 0:02:02]} 16. Bxa8 {[%clk 0:02:00]}  Nd3+ {[%clk 0:02:02]} 17. Kd2 {[%clk 0:01:41]}  Nxc1 {[%clk 0:01:34]} 18. Bd5 {[%clk 0:01:23]}  Rd8 {[%clk 0:01:31]} 19. Bxf7+ {[%clk 0:01:09]}  Kxf7 {[%clk 0:01:30]} 20. Kxc1 {[%clk 0:01:10]}  c5 {[%clk 0:01:24]} 21. dxc5 {[%clk 0:01:06]}  Rc8 {[%clk 0:01:19]} 22. Nf3 {[%clk 0:01:06]}  Rxc5+ {[%clk 0:01:19]} 23. Kb1 {[%clk 0:01:04]}  Rb5 {[%clk 0:01:19]} 24. b3 {[%clk 0:01:03]}  a5 {[%clk 0:01:15]} 25. Rc1 {[%clk 0:01:02]}  a4 {[%clk 0:01:11]} 26. Rc7+ {[%clk 0:00:53]}  Kg8 {[%clk 0:01:09]} 27. Kc2 {[%clk 0:00:53]}  axb3+ {[%clk 0:01:07]} 28. axb3 {[%clk 0:00:53]}  Ra5 {[%clk 0:01:08]} 29. Rc6 {[%clk 0:00:35]}  Ra2+ {[%clk 0:01:06]} 30. Kd3 {[%clk 0:00:35]}  Kf7 {[%clk 0:00:46]} 31. Nd2 {[%clk 0:00:34]}  Bd8 {[%clk 0:00:43]} 32. f3 {[%clk 0:00:31]}  Ke7 {[%clk 0:00:37]} 33. g4 {[%clk 0:00:31]}  Kd7 {[%clk 0:00:37]} 34. Rc4 {[%clk 0:00:28]}  Bf6 {[%clk 0:00:25]} 35. f4 {[%clk 0:00:25]}  Rb2 {[%clk 0:00:20]} 36. e4 {[%clk 0:00:24]}  b5 {[%clk 0:00:20]} 37. Rc5 {[%clk 0:00:21]}  b4 {[%clk 0:00:18]} 38. e5 {[%clk 0:00:19]}  Be7 {[%clk 0:00:19]} 39. Rd5+ {[%clk 0:00:18]}  Kc6 {[%clk 0:00:17]} 40. Rd4 {[%clk 0:00:18]}  Bc5 {[%clk 0:00:17]} 41. Rc4 {[%clk 0:00:17]}  Kd5 {[%clk 0:00:15]} 42. h4 {[%clk 0:00:15]}  Be7 {[%clk 0:00:12]} 43. h5 {[%clk 0:00:15]}  gxh5 {[%clk 0:00:13]} 44. gxh5 {[%clk 0:00:15]}  h6 {[%clk 0:00:11]} 45. Rd4+ {[%clk 0:00:15]}  Ke6 {[%clk 0:00:10]} 46. Rc4 {[%clk 0:00:13]}  Kf5 {[%clk 0:00:10]} 47. Ke3 {[%clk 0:00:13]}  Bf8 {[%clk 0:00:09]} 48. Rc6 {[%clk 0:00:12]}  Be7 {[%clk 0:00:08]} 49. Rc7 {[%clk 0:00:09]}  Bf8 {[%clk 0:00:07]} 50. Rf7+ {[%clk 0:00:09]}  Kg4 {[%clk 0:00:07]} 51. Rxf8 {[%clk 0:00:10]}  Kxh5 {[%clk 0:00:08]} 52. e6 {[%clk 0:00:10]}  Rb1 {[%clk 0:00:05]} 53. e7 {[%clk 0:00:10]}  Re1+ {[%clk 0:00:06]} 54. Kf3 {[%clk 0:00:09]}  Rxe7 {[%clk 0:00:06]} 55. Rg8 {[%clk 0:00:07]}  Rd7 {[%clk 0:00:05]} 56. Ne4 {[%clk 0:00:07]}  Rd3+ {[%clk 0:00:06]} 57. Ke2 {[%clk 0:00:05]}  Rxb3 {[%clk 0:00:06]} 58. f5 {[%clk 0:00:04]}  Rb2+ {[%clk 0:00:06]} 59. Kd3 {[%clk 0:00:04]}  Rb3+ {[%clk 0:00:06]} 60. Kc4 {[%clk 0:00:04]}  Rf3 {[%clk 0:00:07]} 61. f6 {[%clk 0:00:03]}  Rf4 {[%clk 0:00:06]} 62. Kxb4 {[%clk 0:00:03]}  Rxe4+ {[%clk 0:00:06]} 63. Kc5 {[%clk 0:00:03]}  Rf4 {[%clk 0:00:05]} 64. Rf8 {[%clk 0:00:01]}  Kg6 {[%clk 0:00:05]} 65. Kd6 {[%clk 0:00:01]}  h5 {[%clk 0:00:05]} 66. Rg8+ {[%clk 0:00:01]}  Kh7 {[%clk 0:00:05]} 67. Rf8 {[%clk 0:00:01]}  h4 {[%clk 0:00:05]} 68. Ke6 {[%clk 0:00:01]}  h3 {[%clk 0:00:05]} 69. Rc8 {[%clk 0:00:01]}  Kg6 {[%clk 0:00:03]} 0-1


[Site "https://www.chess.com"]

[Event "Titled Tuesday Blitz February 21 Late 2023"]
[White "Melkumyan, Hrant"]
[Black "Nakamura, Hikaru"]
[WhiteFideId "13302485"]
[BlackFideId "2016192"]
[WhiteElo "2645"]
[BlackElo "2775"]
[Result "0-1"]
[Round "04"]
[TimeControl "180+2"]
[Date "2023.02.21"]
[WhiteClock "0:00:01"]
[BlackClock "0:00:11"]

1. d4 {[%clk 0:03:00]}  d6 {[%clk 0:02:59]} 2. Nf3 {[%clk 0:02:59]}  g6 {[%clk 0:02:57]} 3. e4 {[%clk 0:02:57]}  Bg4 {[%clk 0:02:54]} 4. Nbd2 {[%clk 0:02:54]}  Bg7 {[%clk 0:02:49]} 5. h3 {[%clk 0:02:53]}  Bd7 {[%clk 0:02:48]} 6. Bd3 {[%clk 0:02:46]}  Nc6 {[%clk 0:02:47]} 7. d5 {[%clk 0:02:30]}  Nb4 {[%clk 0:02:44]} 8. Bc4 {[%clk 0:02:30]}  c5 {[%clk 0:02:30]} 9. c3 {[%clk 0:02:22]}  Na6 {[%clk 0:02:28]} 10. a4 {[%clk 0:02:22]}  Nf6 {[%clk 0:02:27]} 11. O-O {[%clk 0:02:22]}  O-O {[%clk 0:02:27]} 12. Re1 {[%clk 0:02:21]}  Nc7 {[%clk 0:02:26]} 13. Nf1 {[%clk 0:02:15]}  a6 {[%clk 0:02:22]} 14. a5 {[%clk 0:02:06]}  Bb5 {[%clk 0:02:22]} 15. Qe2 {[%clk 0:01:56]}  Bxc4 {[%clk 0:02:01]} 16. Qxc4 {[%clk 0:01:56]}  e6 {[%clk 0:02:02]} 17. dxe6 {[%clk 0:01:54]}  Nxe6 {[%clk 0:02:03]} 18. Ne3 {[%clk 0:01:47]}  Re8 {[%clk 0:02:00]} 19. Nd5 {[%clk 0:01:43]}  Nd7 {[%clk 0:01:42]} 20. Be3 {[%clk 0:01:38]}  Rc8 {[%clk 0:01:29]} 21. Red1 {[%clk 0:01:37]}  Rc6 {[%clk 0:01:28]} 22. Rd2 {[%clk 0:01:12]}  h6 {[%clk 0:01:27]} 23. Nf4 {[%clk 0:01:03]}  Nd4 {[%clk 0:01:09]} 24. Nh2 {[%clk 0:00:29]}  Rxe4 {[%clk 0:00:53]} 25. Qd3 {[%clk 0:00:27]}  Qe8 {[%clk 0:00:52]} 26. Rad1 {[%clk 0:00:16]}  Nb3 {[%clk 0:00:38]} 27. Re2 {[%clk 0:00:16]}  Nxa5 {[%clk 0:00:29]} 28. Nd5 {[%clk 0:00:16]}  Nc4 {[%clk 0:00:26]} 29. Nf3 {[%clk 0:00:14]}  Nxe3 {[%clk 0:00:25]} 30. Rxe3 {[%clk 0:00:10]}  Rxe3 {[%clk 0:00:26]} 31. Nxe3 {[%clk 0:00:11]}  Nf6 {[%clk 0:00:26]} 32. c4 {[%clk 0:00:07]}  Qe4 {[%clk 0:00:26]} 33. Qb3 {[%clk 0:00:05]}  Qe7 {[%clk 0:00:26]} 34. Qd3 {[%clk 0:00:05]}  a5 {[%clk 0:00:20]} 35. Nd2 {[%clk 0:00:05]}  a4 {[%clk 0:00:20]} 36. Ra1 {[%clk 0:00:04]}  Rb6 {[%clk 0:00:21]} 37. Rxa4 {[%clk 0:00:04]}  Rxb2 {[%clk 0:00:21]} 38. Ra8+ {[%clk 0:00:03]}  Kh7 {[%clk 0:00:21]} 39. Nf3 {[%clk 0:00:03]}  Ne4 {[%clk 0:00:20]} 40. Ng4 {[%clk 0:00:01]}  Qe6 {[%clk 0:00:14]} 41. Qe3 {[%clk 0:00:01]}  f5 {[%clk 0:00:12]} 42. Ngh2 {[%clk 0:00:01]}  Rb1+ {[%clk 0:00:11]} 43. Nf1 {[%clk 0:00:02]}  Qxc4 {[%clk 0:00:12]} 44. Nd2 {[%clk 0:00:01]}  Nxd2 {[%clk 0:00:11]} 45. Qe8 {[%clk 0:00:01]}  Qxf1+ {[%clk 0:00:11]} 46. Kh2 {[%clk 0:00:02]}  Be5+ {[%clk 0:00:10]} 47. f4 {[%clk 0:00:01]}  Qxf4+ {[%clk 0:00:10]} 48. g3 {[%clk 0:00:01]}  Qxg3# {[%clk 0:00:11]} 0-1


[Site "https://www.chess.com"]